[Event "Titled Tuesday Blitz November 01 Late 2022"]
[White "Aguilar, Juan"]
[Black "Han, Yichen"]
[WhiteFideId "3800091"]
[BlackFideId "1054430"]
[WhiteElo "2434"]
[BlackElo "2323"]
[Result "0-1"]
[Round "06"]
[TimeControl "180+1"]
[Date "2022.11.02"]
[WhiteClock "0:00:03"]
[BlackClock "0:00:25"]

1. d4 {[%clk 0:02:58]}  g6 {[%clk 0:02:58]} 2. c4 {[%clk 0:02:55]}  Bg7 {[%clk 0:02:58]} 3. Nc3 {[%clk 0:02:55]}  c5 {[%clk 0:02:55]} 4. d5 {[%clk 0:02:53]}  Bxc3+ {[%clk 0:02:53]} 5. bxc3 {[%clk 0:02:54]}  Nf6 {[%clk 0:02:52]} 6. Bh6 {[%clk 0:02:40]}  d6 {[%clk 0:02:44]} 7. f3 {[%clk 0:02:23]}  Nbd7 {[%clk 0:02:41]} 8. e4 {[%clk 0:02:18]}  Nh5 {[%clk 0:02:36]} 9. g4 {[%clk 0:02:10]}  Nhf6 {[%clk 0:02:34]} 10. h4 {[%clk 0:02:05]}  Ne5 {[%clk 0:02:31]} 11. Be2 {[%clk 0:01:31]}  Qa5 {[%clk 0:02:27]} 12. Qb3 {[%clk 0:01:27]}  Bd7 {[%clk 0:02:19]} 13. Nh3 {[%clk 0:01:23]}  O-O-O {[%clk 0:02:03]} 14. Nf4 {[%clk 0:01:21]}  Rhe8 {[%clk 0:01:46]} 15. Rb1 {[%clk 0:01:10]}  Qa6 {[%clk 0:01:46]} 16. Bg5 {[%clk 0:00:53]}  Ng8 {[%clk 0:01:40]} 17. Ng2 {[%clk 0:00:43]}  Ba4 {[%clk 0:01:37]} 18. Qb2 {[%clk 0:00:37]}  Rd7 {[%clk 0:01:13]} 19. Ne3 {[%clk 0:00:37]}  e6 {[%clk 0:01:01]} 20. f4 {[%clk 0:00:32]}  h6 {[%clk 0:00:59]} 21. fxe5 {[%clk 0:00:32]}  hxg5 {[%clk 0:00:59]} 22. hxg5 {[%clk 0:00:24]}  dxe5 {[%clk 0:00:59]} 23. Kf2 {[%clk 0:00:15]}  f5 {[%clk 0:00:52]} 24. Bd1 {[%clk 0:00:14]}  Bxd1 {[%clk 0:00:50]} 25. Rhxd1 {[%clk 0:00:15]}  f4 {[%clk 0:00:45]} 26. Nc2 {[%clk 0:00:08]}  Qxc4 {[%clk 0:00:36]} 27. dxe6 {[%clk 0:00:08]}  Qxe6 {[%clk 0:00:34]} 28. Rxd7 {[%clk 0:00:07]}  Qxd7 {[%clk 0:00:34]} 29. Qa3 {[%clk 0:00:08]}  Qd2+ {[%clk 0:00:33]} 30. Kf3 {[%clk 0:00:08]}  Qd3+ {[%clk 0:00:26]} 31. Kf2 {[%clk 0:00:03]}  Qxc2+ {[%clk 0:00:26]} 32. Kf3 {[%clk 0:00:04]}  Qd3+ {[%clk 0:00:25]} 33. Kf2 {[%clk 0:00:03]}  Qxb1 {[%clk 0:00:25]} 34. Qxc5+ {[%clk 0:00:03]}  Kb8 {[%clk 0:00:26]} 35. Qd6+ {[%clk 0:00:03]}  Ka8 {[%clk 0:00:26]} 36. Qd7 {[%clk 0:00:03]}  Qc2+ {[%clk 0:00:25]} 37. Kf3 {[%clk 0:00:03]}  Qxc3+ {[%clk 0:00:25]} 38. Kf2 {[%clk 0:00:03]}  Qd4+ {[%clk 0:00:25]} 0-1


[Site "https://www.chess.com"]

[Event "Titled Tuesday Blitz November 01 Late 2022"]
[White "Ali Abdullahi, Farah"]
[Black "Boidiya, Sidi"]
[WhiteFideId "16100212"]
[BlackFideId "19600100"]
[WhiteElo "2294"]
[BlackElo "2113"]
[Result "0-1"]
[Round "06"]
[TimeControl "180+1"]
[Date "2022.11.02"]
[WhiteClock "0:00:12"]
[BlackClock "0:00:24"]

1. d4 {[%clk 0:03:00]}  d5 {[%clk 0:02:59]} 2. Nf3 {[%clk 0:03:00]}  Nf6 {[%clk 0:02:56]} 3. c4 {[%clk 0:03:01]}  c6 {[%clk 0:02:55]} 4. cxd5 {[%clk 0:03:02]}  cxd5 {[%clk 0:02:51]} 5. Nc3 {[%clk 0:03:02]}  e6 {[%clk 0:02:50]} 6. Bg5 {[%clk 0:03:01]}  Be7 {[%clk 0:02:50]} 7. e3 {[%clk 0:03:00]}  Nbd7 {[%clk 0:02:45]} 8. Bd3 {[%clk 0:02:59]}  h6 {[%clk 0:02:42]} 9. Bxf6 {[%clk 0:02:58]}  Nxf6 {[%clk 0:02:42]} 10. O-O {[%clk 0:02:59]}  a6 {[%clk 0:02:42]} 11. Rc1 {[%clk 0:02:59]}  b5 {[%clk 0:02:42]} 12. a3 {[%clk 0:03:00]}  Bb7 {[%clk 0:02:42]} 13. Re1 {[%clk 0:03:01]}  O-O {[%clk 0:02:41]} 14. e4 {[%clk 0:03:01]}  dxe4 {[%clk 0:02:38]} 15. Nxe4 {[%clk 0:03:02]}  Qd5 {[%clk 0:02:27]} 16. Bc2 {[%clk 0:02:55]}  Rfd8 {[%clk 0:02:26]} 17. Bb3 {[%clk 0:02:54]}  Qh5 {[%clk 0:02:18]} 18. Ng3 {[%clk 0:02:49]}  Bxf3 {[%clk 0:01:58]} 19. Nxh5 {[%clk 0:02:23]}  Bxd1 {[%clk 0:01:56]} 20. Nxf6+ {[%clk 0:02:23]}  Bxf6 {[%clk 0:01:54]} 21. Rcxd1 {[%clk 0:02:21]}  Rxd4 {[%clk 0:01:54]} 22. Rxd4 {[%clk 0:02:07]}  Bxd4 {[%clk 0:01:55]} 23. Rd1 {[%clk 0:01:59]}  Bxb2 {[%clk 0:01:48]} 24. a4 {[%clk 0:01:59]}  bxa4 {[%clk 0:01:47]} 25. Bxa4 {[%clk 0:02:00]}  Bf6 {[%clk 0:01:41]} 26. g3 {[%clk 0:01:55]}  Rd8 {[%clk 0:01:39]} 27. Rc1 {[%clk 0:01:46]}  Rd6 {[%clk 0:01:31]} 28. Rc2 {[%clk 0:01:36]}  Bd4 {[%clk 0:01:25]} 29. Kg2 {[%clk 0:01:33]}  g5 {[%clk 0:01:25]} 30. h4 {[%clk 0:01:30]}  Kg7 {[%clk 0:01:24]} 31. hxg5 {[%clk 0:01:30]}  hxg5 {[%clk 0:01:25]} 32. f4 {[%clk 0:01:30]}  gxf4 {[%clk 0:01:22]} 33. gxf4 {[%clk 0:01:31]}  f5 {[%clk 0:01:22]} 34. Kf3 {[%clk 0:01:27]}  Kf6 {[%clk 0:01:22]} 35. Rh2 {[%clk 0:01:24]}  Bc5 {[%clk 0:01:15]} 36. Bc2 {[%clk 0:01:18]}  Rd4 {[%clk 0:01:12]} 37. Rh6+ {[%clk 0:01:16]}  Ke7 {[%clk 0:01:10]} 38. Rh7+ {[%clk 0:00:32]}  Kf6 {[%clk 0:01:00]} 39. Rh6+ {[%clk 0:00:32]}  Kf7 {[%clk 0:01:00]} 40. Rh7+ {[%clk 0:00:30]}  Ke8 {[%clk 0:00:53]} 41. Rh6 {[%clk 0:00:22]}  Kd7 {[%clk 0:00:49]} 42. Rh7+ {[%clk 0:00:20]}  Kc6 {[%clk 0:00:49]} 43. Rh6 {[%clk 0:00:18]}  Bd6 {[%clk 0:00:43]} 44. Rxe6 {[%clk 0:00:17]}  Rxf4+ {[%clk 0:00:42]} 45. Ke3 {[%clk 0:00:17]}  Rf1 {[%clk 0:00:38]} 46. Rf6 {[%clk 0:00:17]}  f4+ {[%clk 0:00:37]} 47. Ke2 {[%clk 0:00:18]}  Ra1 {[%clk 0:00:31]} 48. Be4+ {[%clk 0:00:16]}  Kc5 {[%clk 0:00:31]} 49. Kd3 {[%clk 0:00:16]}  Ra3+ {[%clk 0:00:29]} 50. Kc2 {[%clk 0:00:16]}  Be5 {[%clk 0:00:20]} 51. Rf5 {[%clk 0:00:14]}  Kd4 {[%clk 0:00:20]} 52. Bd3 {[%clk 0:00:13]}  Rxd3 {[%clk 0:00:19]} 53. Rf8 {[%clk 0:00:09]}  Rc3+ {[%clk 0:00:18]} 54. Kd2 {[%clk 0:00:09]}  Rc5 {[%clk 0:00:17]} 55. Ra8 {[%clk 0:00:08]}  Rd5 {[%clk 0:00:18]} 56. Rxa6 {[%clk 0:00:08]}  Ke4+ {[%clk 0:00:19]} 57. Ke2 {[%clk 0:00:09]}  f3+ {[%clk 0:00:19]} 58. Kf2 {[%clk 0:00:08]}  Bd4+ {[%clk 0:00:19]} 59. Kg3 {[%clk 0:00:05]}  Rg5+ {[%clk 0:00:19]} 60. Kh2 {[%clk 0:00:05]}  Rg2+ {[%clk 0:00:18]} 61. Kh3 {[%clk 0:00:04]}  Rg7 {[%clk 0:00:18]} 62. Ra8 {[%clk 0:00:03]}  f2 {[%clk 0:00:18]} 63. Rf8 {[%clk 0:00:03]}  Kd3 {[%clk 0:00:18]} 64. Kh2 {[%clk 0:00:02]}  Ke2 {[%clk 0:00:18]} 65. Kh3 {[%clk 0:00:03]}  f1=Q+ {[%clk 0:00:17]} 66. Rxf1 {[%clk 0:00:03]}  Kxf1 {[%clk 0:00:18]} 67. Kh4 {[%clk 0:00:04]}  Kf2 {[%clk 0:00:19]} 68. Kh5 {[%clk 0:00:05]}  Rg3 {[%clk 0:00:19]} 69. Kh6 {[%clk 0:00:06]}  Kf3 {[%clk 0:00:19]} 70. Kh5 {[%clk 0:00:07]}  Rg4 {[%clk 0:00:20]} 71. Kh6 {[%clk 0:00:07]}  Kf4 {[%clk 0:00:20]} 72. Kh5 {[%clk 0:00:08]}  Kf5 {[%clk 0:00:21]} 73. Kh6 {[%clk 0:00:08]}  Rg5 {[%clk 0:00:22]} 74. Kh7 {[%clk 0:00:08]}  Bg1 {[%clk 0:00:21]} 75. Kh6 {[%clk 0:00:09]}  Bf2 {[%clk 0:00:22]} 76. Kh7 {[%clk 0:00:10]}  Rg6 {[%clk 0:00:22]} 77. Kh8 {[%clk 0:00:10]}  Kf6 {[%clk 0:00:23]} 78. Kh7 {[%clk 0:00:11]}  Kf7 {[%clk 0:00:23]} 79. Kh8 {[%clk 0:00:12]}  Rh6# {[%clk 0:00:24]} 0-1


[Site "https://www.chess.com"]

[Event "Titled Tuesday Blitz November 01 Late 2022"]
[White "Ashiku, Franc"]
[Black "Kravtsiv, Martyn"]
[WhiteFideId "4700066"]
[BlackFideId "14113147"]
[WhiteElo "2306"]
[BlackElo "2694"]
[Result "0-1"]
[Round "06"]
[TimeControl "180+1"]
[Date "2022.11.02"]
[WhiteClock "0:00:03"]
[BlackClock "0:00:23"]

1. d4 {[%clk 0:03:00]}  d5 {[%clk 0:02:59]} 2. c4 {[%clk 0:02:59]}  e6 {[%clk 0:02:59]} 3. Nf3 {[%clk 0:02:59]}  Nf6 {[%clk 0:02:58]} 4. g3 {[%clk 0:02:59]}  Nbd7 {[%clk 0:02:58]} 5. Bg2 {[%clk 0:02:57]}  dxc4 {[%clk 0:02:57]} 6. O-O {[%clk 0:02:57]}  a5 {[%clk 0:02:53]} 7. Qc2 {[%clk 0:02:55]}  b5 {[%clk 0:02:47]} 8. Nbd2 {[%clk 0:02:52]}  Bb7 {[%clk 0:02:44]} 9. a4 {[%clk 0:02:51]}  c6 {[%clk 0:02:43]} 10. b3 {[%clk 0:02:40]}  cxb3 {[%clk 0:02:39]} 11. Qxb3 {[%clk 0:02:36]}  Bb4 {[%clk 0:02:38]} 12. Ne5 {[%clk 0:02:18]}  Nxe5 {[%clk 0:02:37]} 13. dxe5 {[%clk 0:02:18]}  Nd5 {[%clk 0:02:32]} 14. Ne4 {[%clk 0:02:13]}  O-O {[%clk 0:02:31]} 15. Rd1 {[%clk 0:01:59]}  bxa4 {[%clk 0:02:22]} 16. Qf3 {[%clk 0:01:48]}  Qe7 {[%clk 0:02:00]} 17. Bb2 {[%clk 0:00:56]}  Kh8 {[%clk 0:01:53]} 18. Qh5 {[%clk 0:00:53]}  Rad8 {[%clk 0:01:23]} 19. Nf6 {[%clk 0:00:41]}  h6 {[%clk 0:01:04]} 20. Rxd5 {[%clk 0:00:17]}  Rxd5 {[%clk 0:00:56]} 21. Bxd5 {[%clk 0:00:17]}  exd5 {[%clk 0:00:40]} 22. e6 {[%clk 0:00:08]}  Qxe6 {[%clk 0:00:34]} 23. Ng4 {[%clk 0:00:08]}  Qg6 {[%clk 0:00:30]} 24. Qh3 {[%clk 0:00:05]}  Kg8 {[%clk 0:00:27]} 25. Ne5 {[%clk 0:00:03]}  Qe6 {[%clk 0:00:26]} 26. Qh4 {[%clk 0:00:03]}  Be7 {[%clk 0:00:25]} 27. Qh5 {[%clk 0:00:02]}  c5 {[%clk 0:00:24]} 28. Ng4 {[%clk 0:00:02]}  d4 {[%clk 0:00:24]} 29. Bc1 {[%clk 0:00:02]}  Qe4 {[%clk 0:00:24]} 30. Nxh6+ {[%clk 0:00:02]}  gxh6 {[%clk 0:00:23]} 31. Bxh6 {[%clk 0:00:03]}  Qg2# {[%clk 0:00:23]} 0-1


[Site "https://www.chess.com"]

[Event "Titled Tuesday Blitz November 01 Late 2022"]
[White "Averjanov, Alexey"]
[Black "Mikhailuk, Slava"]
[WhiteFideId "14109867"]
[BlackFideId "2012910"]
[WhiteElo "2661"]
[BlackElo "2353"]
[Result "0-1"]
[Round "06"]
[TimeControl "180+1"]
[Date "2022.11.02"]
[WhiteClock "0:00:43"]
[BlackClock "0:01:00"]

1. d4 {[%clk 0:02:54]}  Nf6 {[%clk 0:02:57]} 2. c4 {[%clk 0:02:52]}  g6 {[%clk 0:02:58]} 3. Nc3 {[%clk 0:02:51]}  d5 {[%clk 0:02:58]} 4. cxd5 {[%clk 0:02:51]}  Nxd5 {[%clk 0:02:59]} 5. e4 {[%clk 0:02:52]}  Nxc3 {[%clk 0:02:59]} 6. bxc3 {[%clk 0:02:52]}  Bg7 {[%clk 0:02:59]} 7. Nf3 {[%clk 0:02:52]}  O-O {[%clk 0:03:00]} 8. Be3 {[%clk 0:02:51]}  c5 {[%clk 0:02:59]} 9. Qd2 {[%clk 0:02:52]}  Qa5 {[%clk 0:02:57]} 10. Rc1 {[%clk 0:02:51]}  Nc6 {[%clk 0:02:52]} 11. d5 {[%clk 0:02:51]}  Ne5 {[%clk 0:02:47]} 12. Nxe5 {[%clk 0:02:51]}  Bxe5 {[%clk 0:02:47]} 13. f4 {[%clk 0:02:51]}  Bg7 {[%clk 0:02:47]} 14. c4 {[%clk 0:02:51]}  Qa3 {[%clk 0:02:39]} 15. Be2 {[%clk 0:02:47]}  e6 {[%clk 0:02:31]} 16. O-O {[%clk 0:02:44]}  exd5 {[%clk 0:02:30]} 17. cxd5 {[%clk 0:02:44]}  b6 {[%clk 0:02:30]} 18. Bf3 {[%clk 0:02:43]}  Ba6 {[%clk 0:02:28]} 19. Rfd1 {[%clk 0:02:43]}  Rac8 {[%clk 0:02:09]} 20. e5 {[%clk 0:02:43]}  Rfd8 {[%clk 0:02:09]} 21. d6 {[%clk 0:02:43]}  c4 {[%clk 0:02:08]} 22. Bg4 {[%clk 0:02:37]}  c3 {[%clk 0:02:03]} 23. Qd5 {[%clk 0:02:33]}  c2 {[%clk 0:01:53]} 24. Re1 {[%clk 0:02:14]}  Rc3 {[%clk 0:01:47]} 25. Bd4 {[%clk 0:02:00]}  Rd3 {[%clk 0:01:44]} 26. e6 {[%clk 0:01:58]}  Bxd4+ {[%clk 0:01:33]} 27. Kh1 {[%clk 0:01:57]}  Qxd6 {[%clk 0:01:29]} 28. exf7+ {[%clk 0:01:56]}  Kg7 {[%clk 0:01:27]} 29. Re8 {[%clk 0:01:48]}  Qxf4 {[%clk 0:01:08]} 30. f8=Q+ {[%clk 0:01:01]}  Qxf8 {[%clk 0:01:05]} 31. Qxd8 {[%clk 0:00:53]}  Rd1+ {[%clk 0:01:03]} 32. Bxd1 {[%clk 0:00:43]}  Qf1# {[%clk 0:01:00]} 0-1


[Site "https://www.chess.com"]

[Event "Titled Tuesday Blitz November 01 Late 2022"]
[White "Baglan, Esat"]
[Black "Jobava, Baadur"]
[WhiteFideId "6309216"]
[BlackFideId "13601520"]
[WhiteElo "2231"]
[BlackElo "2582"]
[Result "0-1"]
[Round "06"]
[TimeControl "180+1"]
[Date "2022.11.02"]
[WhiteClock "0:01:05"]
[BlackClock "0:01:16"]

1. e4 {[%clk 0:03:00]}  e6 {[%clk 0:02:59]} 2. d4 {[%clk 0:03:00]}  d5 {[%clk 0:03:00]} 3. e5 {[%clk 0:03:00]}  c5 {[%clk 0:03:00]} 4. c3 {[%clk 0:03:01]}  Nc6 {[%clk 0:03:01]} 5. Nf3 {[%clk 0:03:01]}  Qb6 {[%clk 0:03:00]} 6. Be2 {[%clk 0:03:01]}  Bd7 {[%clk 0:03:00]} 7. O-O {[%clk 0:03:00]}  cxd4 {[%clk 0:03:00]} 8. cxd4 {[%clk 0:03:01]}  Nge7 {[%clk 0:02:59]} 9. Na3 {[%clk 0:03:01]}  Nf5 {[%clk 0:02:58]} 10. Nc2 {[%clk 0:03:01]}  Be7 {[%clk 0:02:56]} 11. Bd3 {[%clk 0:02:48]}  g6 {[%clk 0:02:52]} 12. Bxf5 {[%clk 0:02:46]}  gxf5 {[%clk 0:02:52]} 13. Bg5 {[%clk 0:02:45]}  Rg8 {[%clk 0:02:51]} 14. Bxe7 {[%clk 0:02:45]}  Nxe7 {[%clk 0:02:51]} 15. Qd2 {[%clk 0:02:38]}  O-O-O {[%clk 0:02:47]} 16. Rfc1 {[%clk 0:02:34]}  Kb8 {[%clk 0:02:47]} 17. Nb4 {[%clk 0:02:32]}  Rc8 {[%clk 0:02:33]} 18. Nd3 {[%clk 0:02:31]}  Qd8 {[%clk 0:02:20]} 19. Rxc8+ {[%clk 0:02:16]}  Bxc8 {[%clk 0:02:19]} 20. Rc1 {[%clk 0:02:16]}  b6 {[%clk 0:02:17]} 21. Qh6 {[%clk 0:02:14]}  Qf8 {[%clk 0:02:11]} 22. Qxf8 {[%clk 0:02:12]}  Rxf8 {[%clk 0:02:12]} 23. Ng5 {[%clk 0:02:12]}  h6 {[%clk 0:02:10]} 24. Nh7 {[%clk 0:02:12]}  Rd8 {[%clk 0:02:08]} 25. Nf6 {[%clk 0:02:11]}  a5 {[%clk 0:02:03]} 26. f4 {[%clk 0:01:44]}  Ba6 {[%clk 0:02:02]} 27. Ne1 {[%clk 0:01:43]}  Kb7 {[%clk 0:01:57]} 28. Kf2 {[%clk 0:01:44]}  Nc6 {[%clk 0:01:55]} 29. Ke3 {[%clk 0:01:43]}  Rc8 {[%clk 0:01:54]} 30. Rc3 {[%clk 0:01:34]}  a4 {[%clk 0:01:49]} 31. h3 {[%clk 0:01:24]}  Bc4 {[%clk 0:01:39]} 32. b3 {[%clk 0:01:21]}  axb3 {[%clk 0:01:40]} 33. axb3 {[%clk 0:01:22]}  Bb5 {[%clk 0:01:40]} 34. g4 {[%clk 0:01:16]}  Ra8 {[%clk 0:01:36]} 35. Rc2 {[%clk 0:01:15]}  Ra3 {[%clk 0:01:33]} 36. Rc3 {[%clk 0:01:09]}  Ra2 {[%clk 0:01:27]} 37. Nc2 {[%clk 0:01:09]}  Rb2 {[%clk 0:01:17]} 38. gxf5 {[%clk 0:01:04]}  Ne7 {[%clk 0:01:17]} 39. Ne8 {[%clk 0:01:05]}  Nxf5+ {[%clk 0:01:15]} 40. Kf3 {[%clk 0:01:05]}  Bxe8 {[%clk 0:01:16]} 0-1


[Site "https://www.chess.com"]

[Event "Titled Tuesday Blitz November 01 Late 2022"]
[White "Bartel, Mateusz"]
[Black "Svane, Rasmus"]
[WhiteFideId "1112635"]
[BlackFideId "4657101"]
[WhiteElo "2530"]
[BlackElo "2674"]
[Result "1/2-1/2"]
[Round "06"]
[TimeControl "180+1"]
[Date "2022.11.01"]
[WhiteClock "0:00:18"]
[BlackClock "0:00:42"]

1. e4 {[%clk 0:03:00]}  c6 {[%clk 0:03:00]} 2. d4 {[%clk 0:02:52]}  d5 {[%clk 0:03:01]} 3. exd5 {[%clk 0:02:51]}  cxd5 {[%clk 0:03:02]} 4. Bd3 {[%clk 0:02:50]}  Nc6 {[%clk 0:03:03]} 5. c3 {[%clk 0:02:50]}  Nf6 {[%clk 0:03:03]} 6. h3 {[%clk 0:02:45]}  e5 {[%clk 0:02:46]} 7. dxe5 {[%clk 0:02:36]}  Nxe5 {[%clk 0:02:47]} 8. Bb5+ {[%clk 0:02:35]}  Bd7 {[%clk 0:02:35]} 9. Bxd7+ {[%clk 0:02:35]}  Qxd7 {[%clk 0:02:33]} 10. Nf3 {[%clk 0:02:36]}  Bd6 {[%clk 0:02:22]} 11. O-O {[%clk 0:02:34]}  O-O {[%clk 0:02:22]} 12. Nbd2 {[%clk 0:02:31]}  Nd3 {[%clk 0:02:05]} 13. Nb3 {[%clk 0:02:29]}  Nxc1 {[%clk 0:02:06]} 14. Rxc1 {[%clk 0:02:28]}  Rfe8 {[%clk 0:02:06]} 15. Rc2 {[%clk 0:02:27]}  a6 {[%clk 0:02:03]} 16. Re2 {[%clk 0:02:15]}  Rxe2 {[%clk 0:02:01]} 17. Qxe2 {[%clk 0:02:16]}  Re8 {[%clk 0:02:02]} 18. Qd3 {[%clk 0:02:16]}  h6 {[%clk 0:01:49]} 19. Rd1 {[%clk 0:02:16]}  Bc7 {[%clk 0:01:45]} 20. Nbd4 {[%clk 0:01:38]}  Re4 {[%clk 0:01:28]} 21. Nd2 {[%clk 0:01:31]}  Re8 {[%clk 0:01:28]} 22. N2f3 {[%clk 0:01:31]}  Re4 {[%clk 0:01:27]} 23. Nc2 {[%clk 0:01:10]}  Bb6 {[%clk 0:01:13]} 24. Kf1 {[%clk 0:01:07]}  Qe7 {[%clk 0:00:52]} 25. Ncd4 {[%clk 0:00:58]}  g6 {[%clk 0:00:49]} 26. Nd2 {[%clk 0:00:55]}  Re5 {[%clk 0:00:48]} 27. N2f3 {[%clk 0:00:41]}  Re4 {[%clk 0:00:48]} 28. Nd2 {[%clk 0:00:18]}  Re5 {[%clk 0:00:47]} 29. N2f3 {[%clk 0:00:18]}  Re4 {[%clk 0:00:42]} 1/2-1/2


[Site "https://www.chess.com"]

[Event "Titled Tuesday Blitz November 01 Late 2022"]
[White "Bettalli, Francesco"]
[Black "Jimenez Fernandez, Rebeca"]
[WhiteFideId "2816453"]
[BlackFideId "32070934"]
[WhiteElo "2216"]
[BlackElo "1946"]
[Result "1-0"]
[Round "06"]
[TimeControl "180+1"]
[Date "2022.11.02"]
[WhiteClock "0:00:21"]
[BlackClock "0:00:16"]

1. d4 {[%clk 0:03:00]}  Nf6 {[%clk 0:02:51]} 2. Nc3 {[%clk 0:02:59]}  d5 {[%clk 0:02:48]} 3. Bg5 {[%clk 0:02:38]}  e6 {[%clk 0:02:39]} 4. e4 {[%clk 0:02:26]}  Be7 {[%clk 0:02:19]} 5. e5 {[%clk 0:02:16]}  Nfd7 {[%clk 0:02:18]} 6. Bxe7 {[%clk 0:02:17]}  Qxe7 {[%clk 0:02:18]} 7. f4 {[%clk 0:02:12]}  c5 {[%clk 0:02:16]} 8. Nb5 {[%clk 0:02:05]}  O-O {[%clk 0:02:13]} 9. Nc7 {[%clk 0:02:05]}  Nb6 {[%clk 0:02:04]} 10. Nxa8 {[%clk 0:01:59]}  Nxa8 {[%clk 0:02:05]} 11. Nf3 {[%clk 0:01:59]}  Nc6 {[%clk 0:02:03]} 12. c3 {[%clk 0:01:59]}  f6 {[%clk 0:01:59]} 13. Bd3 {[%clk 0:01:51]}  cxd4 {[%clk 0:01:47]} 14. cxd4 {[%clk 0:01:49]}  fxe5 {[%clk 0:01:47]} 15. fxe5 {[%clk 0:01:39]}  Nxd4 {[%clk 0:01:46]} 16. Bxh7+ {[%clk 0:01:39]}  Kxh7 {[%clk 0:01:41]} 17. Qxd4 {[%clk 0:01:40]}  Nb6 {[%clk 0:01:34]} 18. O-O {[%clk 0:01:33]}  Bd7 {[%clk 0:01:29]} 19. Ng5+ {[%clk 0:01:17]}  Qxg5 {[%clk 0:00:50]} 20. Rxf8 {[%clk 0:01:17]}  Nc4 {[%clk 0:00:51]} 21. Raf1 {[%clk 0:01:12]}  Nxe5 {[%clk 0:00:46]} 22. Rb8 {[%clk 0:00:53]}  Bb5 {[%clk 0:00:36]} 23. Qf4 {[%clk 0:00:26]}  Qe7 {[%clk 0:00:16]} 24. Qxe5 {[%clk 0:00:20]}  Qc5+ {[%clk 0:00:16]} 25. Kh1 {[%clk 0:00:20]}  Bxf1 {[%clk 0:00:16]} 26. Qh5# {[%clk 0:00:21]} 1-0


[Site "https://www.chess.com"]

[Event "Titled Tuesday Blitz November 01 Late 2022"]
[White "Bluebaum, Matthias"]
[Black "Yanchenko, Roman"]
[WhiteFideId "24651516"]
[BlackFideId "4137329"]
[WhiteElo "2633"]
[BlackElo "2514"]
[Result "1-0"]
[Round "06"]
[TimeControl "180+1"]
[Date "2022.11.01"]
[WhiteClock "0:01:20"]
[BlackClock "0:00:14"]

1. d4 {[%clk 0:03:00]}  d5 {[%clk 0:03:00]} 2. c4 {[%clk 0:03:00]}  c6 {[%clk 0:03:00]} 3. Nc3 {[%clk 0:03:01]}  Nf6 {[%clk 0:03:00]} 4. Nf3 {[%clk 0:03:01]}  g6 {[%clk 0:03:00]} 5. cxd5 {[%clk 0:03:00]}  cxd5 {[%clk 0:03:00]} 6. Bf4 {[%clk 0:03:01]}  a6 {[%clk 0:03:00]} 7. e3 {[%clk 0:03:01]}  Nc6 {[%clk 0:03:00]} 8. Bd3 {[%clk 0:03:02]}  Bf5 {[%clk 0:03:00]} 9. Bxf5 {[%clk 0:03:01]}  gxf5 {[%clk 0:03:01]} 10. O-O {[%clk 0:02:53]}  e6 {[%clk 0:03:01]} 11. Ne5 {[%clk 0:02:49]}  Nxe5 {[%clk 0:03:00]} 12. Bxe5 {[%clk 0:02:48]}  Bd6 {[%clk 0:03:00]} 13. Qa4+ {[%clk 0:02:29]}  b5 {[%clk 0:02:45]} 14. Bxf6 {[%clk 0:02:28]}  Qxf6 {[%clk 0:02:44]} 15. Nxb5 {[%clk 0:02:28]}  Bxh2+ {[%clk 0:01:23]} 16. Kxh2 {[%clk 0:02:27]}  O-O {[%clk 0:01:24]} 17. Nc3 {[%clk 0:02:24]}  Kh8 {[%clk 0:01:24]} 18. g3 {[%clk 0:02:16]}  Rg8 {[%clk 0:01:24]} 19. Rh1 {[%clk 0:02:16]}  f4 {[%clk 0:01:20]} 20. exf4 {[%clk 0:02:14]}  Rg4 {[%clk 0:01:19]} 21. Ne2 {[%clk 0:02:08]}  Qf5 {[%clk 0:01:13]} 22. Qb3 {[%clk 0:02:03]}  Qe4 {[%clk 0:00:49]} 23. Qe3 {[%clk 0:02:02]}  Qc2 {[%clk 0:00:45]} 24. Kg2 {[%clk 0:01:59]}  Qxb2 {[%clk 0:00:41]} 25. Rab1 {[%clk 0:01:59]}  Qxa2 {[%clk 0:00:40]} 26. Qe5+ {[%clk 0:01:58]}  Rg7 {[%clk 0:00:40]} 27. Rb7 {[%clk 0:01:47]}  Rf8 {[%clk 0:00:39]} 28. Rb8 {[%clk 0:01:29]}  Rxb8 {[%clk 0:00:28]} 29. Qxb8+ {[%clk 0:01:30]}  Rg8 {[%clk 0:00:29]} 30. Qe5+ {[%clk 0:01:30]}  Rg7 {[%clk 0:00:29]} 31. f5 {[%clk 0:01:31]}  f6 {[%clk 0:00:23]} 32. Qb8+ {[%clk 0:01:28]}  Rg8 {[%clk 0:00:19]} 33. Qc7 {[%clk 0:01:28]}  Rg7 {[%clk 0:00:19]} 34. Qd8+ {[%clk 0:01:29]}  Rg8 {[%clk 0:00:19]} 35. Qxf6+ {[%clk 0:01:24]}  Rg7 {[%clk 0:00:19]} 36. Nf4 {[%clk 0:01:23]}  Qe2 {[%clk 0:00:14]} 37. Qf8+ {[%clk 0:01:19]}  Rg8 {[%clk 0:00:14]} 38. Ng6# {[%clk 0:01:20]} 1-0


[Site "https://www.chess.com"]